[Event "IV Pullman Blitz 2022"]
[Site "Riga, Latvia"]
[Date "2022.02.20"]
[Round "6.1"]
[White "Antoms, Guntars"]
[Black "Golubovskis, Maksims"]
[Result "1-0"]
[TimeControl "180+2"]
[WhiteTitle "IM"]
[BlackTitle "FM"]
[WhiteElo "2231"]
[BlackElo "2066"]

1. e4 {[%clk 00:03:03]} c5 {[%clk 00:03:04]} 2. Nc3 {[%clk 00:03:04]} {[%emt
00:00:01]} d6 {[%clk 00:03:06]} 3. f4 {[%clk 00:03:05]} {[%emt 00:00:01]} g6
{[%clk 00:03:07]} 4. Nf3 {[%clk 00:03:06]} {[%emt 00:00:02]} Bg7 {[%clk
00:03:08]} 5. Bc4 {[%clk 00:03:07]} {[%emt 00:00:02]} Nc6 {[%clk 00:03:09]}
{[%emt 00:00:01]} 6. O-O {[%clk 00:03:06]} {[%emt 00:00:02]} Nf6 {[%clk
00:03:10]} 7. d3 {[%clk 00:03:07]} {[%emt 00:00:03]} O-O {[%clk 00:03:11]}
{[%emt 00:00:02]} 8. f5 {[%clk 00:03:08]} {[%emt 00:00:01]} e6 {[%clk
00:03:10]} {[%emt 00:00:02]} 9. fxe6 {[%clk 00:03:01]} {[%emt 00:00:09]} Bxe6
{[%clk 00:03:00]} {[%emt 00:00:11]} 10. Qe1 {[%clk 00:02:33]} {[%emt 00:00:30]}
Nb4 {[%clk 00:02:53]} {[%emt 00:00:09]} 11. Qe2 {[%clk 00:02:03]} {[%emt
00:00:32]} d5 {[%clk 00:02:52]} {[%emt 00:00:03]} 12. exd5 {[%clk 00:01:59]}
{[%emt 00:00:06]} Nfxd5 {[%clk 00:02:54]} 13. Nxd5 {[%clk 00:01:50]} {[%emt
00:00:11]} Bxd5 {[%clk 00:02:41]} {[%emt 00:00:15]} 14. c3 {[%clk 00:01:40]}
{[%emt 00:00:12]} Nc6 {[%clk 00:02:33]} {[%emt 00:00:10]} 15. Bxd5 {[%clk
00:01:30]} {[%emt 00:00:12]} Qxd5 {[%clk 00:02:34]} 16. Bg5 {[%clk 00:01:29]}
{[%emt 00:00:03]} Rfe8 {[%clk 00:02:32]} {[%emt 00:00:05]} 17. Qd2 {[%clk
00:01:25]} {[%emt 00:00:06]} Re6 {[%clk 00:01:33]} {[%emt 00:01:01]} 18. a3
{[%clk 00:01:25]} {[%emt 00:00:02]} Rd6 {[%clk 00:01:29]} {[%emt 00:00:06]} 19.
Rad1 {[%clk 00:01:23]} {[%emt 00:00:04]} Re8 {[%clk 00:01:28]} {[%emt
00:00:04]} 20. Bh6 {[%clk 00:01:16]} {[%emt 00:00:09]} Bf6 {[%clk 00:01:16]}
{[%emt 00:00:14]} 21. Rfe1 {[%clk 00:01:14]} {[%emt 00:00:04]} Red8 {[%clk
00:01:11]} {[%emt 00:00:08]} 22. Re2 {[%clk 00:01:07]} {[%emt 00:00:08]} Bg7
{[%clk 00:01:07]} {[%emt 00:00:07]} 23. Bg5 {[%clk 00:00:30]} {[%emt 00:00:39]}
f6 {[%clk 00:01:07]} {[%emt 00:00:02]} 24. Bf4 {[%clk 00:00:31]} {[%emt
00:00:01]} R6d7 {[%clk 00:01:00]} {[%emt 00:00:09]} 25. Qe1 {[%clk 00:00:29]}
{[%emt 00:00:03]} Qf5 {[%clk 00:00:38]} {[%emt 00:00:24]} 26. Re8+ {[%clk
00:00:21]} {[%emt 00:00:10]} Kf7 {[%clk 00:00:35]} {[%emt 00:00:06]} 27. Rxd8
{[%emt 00:00:03]} Rxd8 28. Be3 {[%clk 00:00:16]} {[%emt 00:00:06]} Rxd3 {[%clk
00:00:24]} {[%emt 00:00:14]} 29. Rxd3 {[%clk 00:00:16]} {[%emt 00:00:02]} Qxd3
{[%clk 00:00:25]} 30. Bxc5 {[%clk 00:00:17]} {[%emt 00:00:01]} Qb5 {[%clk
00:00:19]} {[%emt 00:00:08]} 31. Bb4 {[%clk 00:00:11]} {[%emt 00:00:07]} a5
{[%clk 00:00:18]} {[%emt 00:00:03]} 32. Bd6 {[%clk 00:00:08]} {[%emt 00:00:04]}
Qxb2 {[%clk 00:00:15]} {[%emt 00:00:06]} 33. Nd4 {[%clk 00:00:10]} Bf8 {[%clk
00:00:04]} {[%emt 00:00:14]} 34. Qe6+ {[%clk 00:00:09]} {[%emt 00:00:02]} Kg7
{[%clk 00:00:05]} 35. Qd7+ {[%clk 00:00:10]} {[%emt 00:00:02]} Kg8 {[%clk
00:00:03]} {[%emt 00:00:04]} 36. Qe8 {[%clk 00:00:08]} {[%emt 00:00:09]} Qc1+
{[%clk 00:00:07]} {[%emt 00:00:02]} 37. Kf2 {[%clk 00:00:09]} 1-0

[Event "IV Pullman Blitz 2022"]
[Site "Riga, Latvia"]
[Date "2022.02.20"]
[Round "6.2"]
[White "Berzina, Ilze"]
[Black "Berzinsh, Roland"]
[Result "0-1"]
[TimeControl "180+2"]
[WhiteTitle "WGM"]
[BlackTitle "IM"]
[WhiteElo "2068"]
[BlackElo "2285"]

1. e4 {[%clk 00:03:03]} e5 {[%clk 00:03:03]} {[%emt 00:00:02]} 2. Nf3 {[%clk
00:03:04]} {[%emt 00:00:02]} Nc6 {[%clk 00:03:04]} 3. Bb5 {[%clk 00:03:05]}
{[%emt 00:00:02]} Nge7 {[%clk 00:03:05]} 4. O-O {[%clk 00:03:03]} {[%emt
00:00:04]} g6 {[%clk 00:03:06]} 5. c3 {[%clk 00:03:03]} {[%emt 00:00:02]} a6
{[%clk 00:03:07]} {[%emt 00:00:01]} 6. Ba4 {[%clk 00:03:04]} {[%emt 00:00:01]}
Bg7 {[%clk 00:03:07]} 7. d4 {[%clk 00:03:04]} {[%emt 00:00:02]} exd4 {[%clk
00:03:08]} {[%emt 00:00:01]} 8. cxd4 {[%clk 00:03:05]} O-O {[%clk 00:03:08]}
{[%emt 00:00:02]} 9. Nc3 {[%clk 00:03:05]} {[%emt 00:00:02]} b5 {[%clk
00:03:07]} {[%emt 00:00:03]} 10. Bb3 {[%clk 00:03:05]} {[%emt 00:00:02]} d6
{[%clk 00:03:04]} {[%emt 00:00:04]} 11. h3 {[%clk 00:03:04]} {[%emt 00:00:04]}
Na5 {[%clk 00:03:04]} {[%emt 00:00:03]} 12. Bc2 {[%clk 00:03:02]} {[%emt
00:00:04]} Bb7 {[%clk 00:03:04]} {[%emt 00:00:02]} 13. Re1 {[%clk 00:02:53]}
{[%emt 00:00:11]} Re8 {[%clk 00:03:04]} {[%emt 00:00:02]} 14. Bg5 {[%clk
00:02:53]} {[%emt 00:00:02]} h6 {[%clk 00:03:04]} {[%emt 00:00:02]} 15. Bf4
{[%clk 00:02:46]} {[%emt 00:00:09]} c5 {[%clk 00:02:52]} {[%emt 00:00:14]} 16.
dxc5 {[%clk 00:02:46]} {[%emt 00:00:02]} Nc4 {[%clk 00:02:33]} {[%emt
00:00:22]} 17. cxd6 {[%clk 00:02:26]} {[%emt 00:00:21]} Nc6 {[%clk 00:02:34]}
18. Nd5 {[%clk 00:01:48]} {[%emt 00:00:41]} Nxd6 {[%clk 00:02:28]} {[%emt
00:00:09]} 19. Rb1 {[%clk 00:01:08]} {[%emt 00:00:42]} Rc8 {[%clk 00:02:11]}
{[%emt 00:00:19]} 20. Qd2 {[%clk 00:01:04]} {[%emt 00:00:07]} Nc4 {[%clk
00:02:11]} {[%emt 00:00:02]} 21. Qd3 {[%clk 00:00:54]} {[%emt 00:00:11]} Nxb2
{[%clk 00:01:55]} {[%emt 00:00:19]} 22. Qb3 {[%clk 00:00:50]} {[%emt 00:00:06]}
Nc4 {[%clk 00:01:51]} {[%emt 00:00:06]} 23. Rbd1 {[%clk 00:00:46]} {[%emt
00:00:07]} Qa5 {[%clk 00:01:40]} {[%emt 00:00:12]} 24. a4 {[%clk 00:00:37]}
{[%emt 00:00:11]} N6e5 {[%clk 00:01:36]} {[%emt 00:00:05]} 25. axb5 {[%clk
00:00:31]} {[%emt 00:00:08]} Qxb5 {[%clk 00:01:22]} {[%emt 00:00:16]} 26. Nxe5
{[%clk 00:00:29]} {[%emt 00:00:04]} Nxe5 {[%clk 00:01:16]} {[%emt 00:00:08]} 27.
Qa3 {[%clk 00:00:27]} {[%emt 00:00:05]} Rxc2 {[%clk 00:01:14]} {[%emt
00:00:04]} 28. Qe3 {[%clk 00:00:14]} {[%emt 00:00:15]} Qc5 {[%clk 00:01:08]}
{[%emt 00:00:09]} 29. Qg3 {[%clk 00:00:14]} {[%emt 00:00:02]} g5 {[%clk
00:01:02]} {[%emt 00:00:07]} 30. Be3 {[%clk 00:00:15]} {[%emt 00:00:01]} Qc8
{[%clk 00:00:54]} {[%emt 00:00:11]} 31. Bd4 {[%clk 00:00:14]} {[%emt 00:00:03]}
Bxd5 {[%clk 00:00:52]} {[%emt 00:00:04]} 32. exd5 {[%clk 00:00:14]} {[%emt
00:00:02]} Ng6 {[%clk 00:00:45]} {[%emt 00:00:09]} 33. d6 {[%clk 00:00:11]}
{[%emt 00:00:05]} Rxe1+ {[%clk 00:00:42]} {[%emt 00:00:06]} 34. Rxe1 {[%clk
00:00:12]} Bxd4 {[%clk 00:00:41]} {[%emt 00:00:03]} 35. Rd1 {[%clk 00:00:06]}
{[%emt 00:00:08]} Bxf2+ {[%emt 00:00:02]} 0-1

[Event "IV Pullman Blitz 2022"]
[Site "Riga, Latvia"]
[Date "2022.02.20"]
[Round "6.3"]
[White "Mustaps, Matiss"]
[Black "Agafonov, Yuri Dr"]
[Result "1-0"]
[TimeControl "180+2"]
[WhiteTitle "FM"]
[WhiteElo "2261"]
[BlackElo "2005"]

1. e4 {[%clk 00:03:01]} {[%emt 00:00:02]} d5 {[%clk 00:03:00]} {[%emt
00:00:05]} 2. exd5 {[%clk 00:03:02]} {[%emt 00:00:01]} Qxd5 {[%emt 00:00:02]} 3.
Nc3 Qe5+ {[%clk 00:03:00]} {[%emt 00:00:02]} 4. Nge2 {[%clk 00:02:51]} {[%emt
00:00:14]} Bg4 {[%clk 00:02:51]} {[%emt 00:00:11]} 5. d4 {[%clk 00:02:50]}
{[%emt 00:00:02]} Qd6 {[%clk 00:02:49]} {[%emt 00:00:02]} 6. h3 {[%clk
00:02:50]} {[%emt 00:00:05]} Bh5 {[%clk 00:02:49]} {[%emt 00:00:02]} 7. g4
{[%clk 00:02:50]} {[%emt 00:00:01]} Bg6 {[%clk 00:02:50]} {[%emt 00:00:01]} 8.
Bg2 {[%clk 00:02:51]} c6 {[%clk 00:02:51]} {[%emt 00:00:01]} 9. Bf4 {[%clk
00:02:51]} {[%emt 00:00:02]} Qb4 {[%clk 00:02:40]} {[%emt 00:00:13]} 10. O-O
{[%clk 00:02:45]} {[%emt 00:00:08]} e6 {[%clk 00:02:42]} {[%emt 00:00:01]} 11.
a3 {[%clk 00:02:34]} {[%emt 00:00:14]} Qa5 {[%clk 00:02:43]} 12. b4 {[%clk
00:02:34]} {[%emt 00:00:02]} Qd8 {[%clk 00:02:43]} {[%emt 00:00:02]} 13. b5
{[%clk 00:02:33]} {[%emt 00:00:03]} Bd6 {[%clk 00:02:29]} {[%emt 00:00:16]} 14.
bxc6 {[%clk 00:02:31]} {[%emt 00:00:04]} Nxc6 {[%clk 00:02:25]} {[%emt
00:00:05]} 15. Rb1 {[%clk 00:02:32]} {[%emt 00:00:01]} Bxf4 {[%clk 00:01:52]}
{[%emt 00:00:34]} 16. d5 {[%clk 00:02:00]} {[%emt 00:00:34]} Na5 {[%clk
00:01:38]} {[%emt 00:00:16]} 17. Nxf4 {[%clk 00:01:58]} {[%emt 00:00:03]} Rc8
{[%clk 00:01:28]} {[%emt 00:00:12]} 18. Nb5 {[%clk 00:01:34]} {[%emt 00:00:27]}
Bxc2 {[%clk 00:01:20]} {[%emt 00:00:10]} 19. Qd4 {[%clk 00:01:35]} Nf6 {[%clk
00:01:06]} {[%emt 00:00:16]} 20. Rbc1 {[%clk 00:01:25]} {[%emt 00:00:12]} O-O
{[%clk 00:01:02]} {[%emt 00:00:06]} 21. Qxa7 {[%clk 00:01:10]} {[%emt
00:00:18]} exd5 {[%clk 00:00:55]} {[%emt 00:00:09]} 22. Nd4 {[%clk 00:01:03]}
{[%emt 00:00:09]} Be4 {[%clk 00:00:51]} {[%emt 00:00:06]} 23. Rxc8 {[%clk
00:01:04]} {[%emt 00:00:01]} Qxc8 {[%clk 00:00:51]} 24. Qxa5 {[%clk 00:01:05]}
Bxg2 {[%clk 00:00:52]} {[%emt 00:00:02]} 25. Nxg2 {[%clk 00:01:03]} {[%emt
00:00:04]} Re8 {[%clk 00:00:49]} {[%emt 00:00:04]} 26. Nf5 {[%clk 00:01:02]}
{[%emt 00:00:03]} Qb8 {[%clk 00:00:44]} {[%emt 00:00:08]} 27. Qc3 {[%clk
00:01:01]} {[%emt 00:00:02]} Rc8 {[%clk 00:00:38]} {[%emt 00:00:08]} 1-0

[Event "IV Pullman Blitz 2022"]
[Site "Riga, Latvia"]
[Date "2022.02.20"]
[Round "6.4"]
[White "Laimins, Lauris"]
[Black "Jazdanovs, Aleksandrs"]
[Result "1-0"]
[TimeControl "180+2"]
[WhiteElo "2124"]
[BlackElo "2027"]

1. d4 {[%clk 00:03:04]} {[%emt 00:06:37]} Nf6 {[%clk 00:03:04]} 2. c4 c5 3. d5
{[%clk 00:03:05]} {[%emt 00:00:01]} b5 {[%clk 00:03:07]} 4. cxb5 {[%clk
00:03:06]} {[%emt 00:00:02]} a6 {[%clk 00:03:09]} 5. b6 {[%clk 00:03:07]} e6
{[%clk 00:03:10]} 6. Nc3 {[%clk 00:03:05]} {[%emt 00:00:05]} exd5 {[%clk
00:03:11]} {[%emt 00:00:01]} 7. Nxd5 {[%clk 00:03:06]} Nxd5 {[%clk 00:03:12]}
{[%emt 00:00:02]} 8. Qxd5 {[%clk 00:03:06]} {[%emt 00:00:01]} Nc6 {[%clk
00:03:13]} 9. e4 {[%clk 00:03:06]} {[%emt 00:00:03]} Be7 {[%clk 00:03:14]}
{[%emt 00:00:01]} 10. Bf4 {[%clk 00:03:03]} {[%emt 00:00:04]} Qxb6 {[%clk
00:02:54]} {[%emt 00:00:22]} 11. Qd2 {[%clk 00:03:05]} Bf6 {[%clk 00:02:37]}
{[%emt 00:00:20]} 12. Rb1 {[%clk 00:03:05]} {[%emt 00:00:02]} O-O {[%clk
00:02:38]} 13. Bd3 {[%clk 00:02:59]} {[%emt 00:00:08]} Re8 {[%clk 00:02:27]}
{[%emt 00:00:13]} 14. Ne2 {[%clk 00:03:00]} Nb4 {[%clk 00:02:28]} 15. O-O
{[%clk 00:02:45]} {[%emt 00:00:19]} Nxa2 {[%clk 00:02:24]} {[%emt 00:00:06]} 16.
Nc3 {[%clk 00:02:41]} {[%emt 00:00:06]} Nb4 {[%clk 00:02:24]} {[%emt 00:00:02]}
17. Bc4 {[%clk 00:02:36]} {[%emt 00:00:07]} Be5 {[%clk 00:01:59]} {[%emt
00:00:28]} 18. Be3 {[%clk 00:02:25]} {[%emt 00:00:13]} Qd6 {[%clk 00:01:45]}
{[%emt 00:00:16]} 19. Qxd6 {[%clk 00:02:15]} {[%emt 00:00:12]} Bxd6 {[%clk
00:01:47]} 20. f3 {[%clk 00:02:13]} {[%emt 00:00:05]} Bf8 {[%clk 00:01:31]}
{[%emt 00:00:18]} 21. Rfd1 {[%clk 00:02:09]} {[%emt 00:00:06]} Nc2 {[%clk
00:01:26]} {[%emt 00:00:06]} 22. Bf2 {[%clk 00:02:09]} {[%emt 00:00:01]} Nd4
{[%clk 00:01:24]} {[%emt 00:00:04]} 23. Kf1 {[%clk 00:02:08]} {[%emt 00:00:03]}
Nc6 {[%clk 00:01:14]} {[%emt 00:00:12]} 24. Nd5 {[%clk 00:02:05]} {[%emt
00:00:04]} Rb8 {[%clk 00:01:11]} {[%emt 00:00:06]} 25. b3 {[%clk 00:02:03]}
{[%emt 00:00:05]} Ne5 {[%clk 00:01:06]} {[%emt 00:00:06]} 26. Be2 {[%clk
00:02:02]} {[%emt 00:00:02]} d6 {[%clk 00:01:06]} {[%emt 00:00:02]} 27. Rd2
{[%clk 00:01:54]} {[%emt 00:00:10]} a5 {[%clk 00:00:58]} {[%emt 00:00:10]} 28.
Ra2 {[%clk 00:01:55]} Nc6 {[%clk 00:00:56]} {[%emt 00:00:04]} 29. Bc4 {[%clk
00:01:54]} {[%emt 00:00:03]} Be6 {[%clk 00:00:55]} {[%emt 00:00:03]} 30. Rba1
{[%clk 00:01:55]} Bxd5 {[%clk 00:00:44]} {[%emt 00:00:13]} 31. Bxd5 {[%emt
00:00:01]} Nb4 32. Rd2 {[%clk 00:01:36]} {[%emt 00:00:22]} Nxd5 {[%clk
00:00:46]} {[%emt 00:00:02]} 33. Rxd5 {[%clk 00:01:37]} Rxb3 {[%clk 00:00:36]}
{[%emt 00:00:12]} 34. Rxa5 {[%clk 00:01:38]} c4 {[%clk 00:00:21]} {[%emt
00:00:18]} 35. Ra1 {[%clk 00:01:25]} {[%emt 00:00:15]} c3 {[%clk 00:00:21]}
{[%emt 00:00:03]} 36. Rd3 {[%clk 00:01:24]} {[%emt 00:00:03]} Rc8 {[%clk
00:00:22]} {[%emt 00:00:01]} 37. Rc1 {[%clk 00:01:26]} g6 {[%clk 00:00:16]}
{[%emt 00:00:08]} 38. Bd4 {[%clk 00:01:27]} Bg7 {[%clk 00:00:17]} 39. Bxg7
{[%clk 00:01:28]} {[%emt 00:00:02]} Kxg7 {[%clk 00:00:18]} 40. Rxd6 {[%clk
00:01:29]} c2 {[%clk 00:00:20]} 41. Ke2 {[%clk 00:01:28]} {[%emt 00:00:03]} Rb1
{[%clk 00:00:10]} {[%emt 00:00:12]} 42. Kd2 {[%clk 00:01:30]} Rxc1 {[%clk
00:00:11]} 43. Kxc1 {[%clk 00:01:31]} Ra8 {[%clk 00:00:12]} 44. Rd2 {[%clk
00:01:29]} {[%emt 00:00:05]} h5 {[%clk 00:00:10]} {[%emt 00:00:04]} 45. Kxc2
{[%clk 00:01:30]} {[%emt 00:00:01]} Ra3 {[%clk 00:00:11]} 46. Kd1 {[%clk
00:01:31]} Re3 {[%clk 00:00:12]} {[%emt 00:00:01]} 47. Re2 {[%emt 00:00:03]}
Rd3+ 48. Ke1 {[%clk 00:01:31]} Ra3 49. Kf2 Kf6 {[%clk 00:00:15]} {[%emt
00:00:02]} 50. Rb2 {[%clk 00:01:34]} Kg5 {[%clk 00:00:14]} {[%emt 00:00:03]} 51.
Kg3 {[%clk 00:01:32]} {[%emt 00:00:04]} Rc3 {[%clk 00:00:14]} {[%emt 00:00:02]}
52. Rb5+ {[%clk 00:01:32]} {[%emt 00:00:02]} Kf6 {[%clk 00:00:15]} 53. Kf4
{[%clk 00:01:33]} {[%emt 00:00:01]} Rc2 {[%clk 00:00:16]} 54. Kg3 {[%clk
00:01:34]} Rc3 {[%clk 00:00:18]} 55. h4 {[%clk 00:01:35]} Rc2 {[%clk 00:00:19]}
{[%emt 00:00:03]} 56. Kh3 {[%clk 00:01:35]} {[%emt 00:00:02]} Rf2 {[%clk
00:00:19]} {[%emt 00:00:01]} 57. Rb3 {[%clk 00:01:36]} {[%emt 00:00:01]} Ke5
{[%clk 00:00:17]} {[%emt 00:00:03]} 58. Kg3 {[%clk 00:01:37]} Ra2 {[%clk
00:00:18]} {[%emt 00:00:03]} 59. Rb5+ {[%clk 00:01:38]} {[%emt 00:00:01]} Kf6
{[%clk 00:00:19]} {[%emt 00:00:01]} 60. Rb3 {[%clk 00:01:39]} {[%emt 00:00:01]}
Rc2 {[%clk 00:00:20]} 61. f4 {[%clk 00:01:39]} {[%emt 00:00:02]} Re2 {[%clk
00:00:15]} {[%emt 00:00:07]} 62. Kf3 {[%clk 00:01:40]} {[%emt 00:00:01]} Ra2
{[%clk 00:00:16]} 63. Re3 {[%clk 00:01:41]} {[%emt 00:00:01]} Rb2 {[%clk
00:00:16]} {[%emt 00:00:03]} 64. g4 {[%clk 00:01:38]} {[%emt 00:00:04]} hxg4+
{[%clk 00:00:17]} 65. Kxg4 {[%clk 00:01:39]} Rg2+ {[%clk 00:00:18]} {[%emt
00:00:02]} 66. Kf3 {[%clk 00:01:40]} {[%emt 00:00:01]} Rh2 67. Kg3 Rb2 {[%emt
00:00:01]} 68. Rc3 Re2 {[%clk 00:00:21]} 69. Rc6+ {[%clk 00:01:43]} {[%emt
00:00:02]} Kg7 {[%clk 00:00:21]} {[%emt 00:00:02]} 70. e5 {[%clk 00:01:43]}
{[%emt 00:00:02]} Re1 {[%clk 00:00:22]} {[%emt 00:00:02]} 71. Rc7 {[%clk
00:01:44]} Kf8 {[%clk 00:00:17]} {[%emt 00:00:07]} 72. Kf2 {[%clk 00:01:44]}
{[%emt 00:00:02]} Rh1 {[%clk 00:00:18]} 73. Kg3 {[%clk 00:01:45]} Rg1+ {[%clk
00:00:19]} 74. Kf3 {[%clk 00:01:46]} Rh1 {[%clk 00:00:20]} {[%emt 00:00:02]} 75.
Kg3 {[%clk 00:01:48]} Rg1+ {[%clk 00:00:22]} 76. Kh2 {[%clk 00:01:48]} {[%emt
00:00:01]} Rf1 {[%clk 00:00:23]} {[%emt 00:00:01]} 77. Rc4 {[%clk 00:01:49]}
Ke7 {[%clk 00:00:23]} {[%emt 00:00:01]} 78. Kg2 {[%clk 00:01:50]} {[%emt
00:00:01]} Ra1 {[%clk 00:00:24]} {[%emt 00:00:02]} 79. Rb4 {[%clk 00:01:47]}
{[%emt 00:00:06]} Re1 {[%clk 00:00:23]} {[%emt 00:00:02]} 80. Kg3 {[%clk
00:01:48]} {[%emt 00:00:01]} Rg1+ {[%clk 00:00:24]} 81. Kf3 {[%clk 00:01:48]}
{[%emt 00:00:01]} Rh1 {[%clk 00:00:25]} 82. Kg3 {[%clk 00:01:45]} {[%emt
00:00:06]} Rg1+ {[%clk 00:00:26]} 83. Kh2 {[%clk 00:01:46]} Rf1 {[%clk
00:00:28]} {[%emt 00:00:02]} 84. Ra4 {[%clk 00:01:36]} {[%emt 00:00:12]} Rf2+
{[%clk 00:00:28]} {[%emt 00:00:02]} 85. Kg3 {[%clk 00:01:35]} {[%emt 00:00:03]}
Rf1 {[%clk 00:00:29]} 86. h5 {[%clk 00:01:34]} {[%emt 00:00:03]} gxh5 {[%clk
00:00:28]} {[%emt 00:00:03]} 87. Kh4 {[%clk 00:01:35]} Ke6 {[%clk 00:00:25]}
{[%emt 00:00:05]} 88. Ra6+ {[%clk 00:01:32]} {[%emt 00:00:05]} Ke7 {[%clk
00:00:22]} {[%emt 00:00:05]} 89. Kg5 {[%clk 00:01:33]} Rg1+ {[%clk 00:00:19]}
{[%emt 00:00:06]} 90. Kxh5 {[%clk 00:01:34]} {[%emt 00:00:01]} Rg2 {[%clk
00:00:17]} {[%emt 00:00:03]} 91. f5 {[%clk 00:01:34]} {[%emt 00:00:02]} Re2
{[%clk 00:00:14]} {[%emt 00:00:05]} 92. Ra5 {[%clk 00:01:33]} {[%emt 00:00:03]}
Rh2+ {[%clk 00:00:12]} {[%emt 00:00:03]} 93. Kg4 {[%clk 00:01:34]} {[%emt
00:00:01]} Rg2+ {[%clk 00:00:13]} 94. Kf3 {[%clk 00:01:36]} {[%emt 00:00:01]}
Rb2 {[%clk 00:00:14]} {[%emt 00:00:02]} 95. Ra7+ {[%clk 00:01:34]} {[%emt
00:00:03]} Kf8 {[%emt 00:00:01]} 96. f6 Rb4 {[%clk 00:00:15]} {[%emt 00:00:02]}
97. Ra8+ {[%clk 00:01:37]} {[%emt 00:00:01]} 1-0

[Event "IV Pullman Blitz 2022"]
[Site "Riga, Latvia"]
[Date "2022.02.20"]
[Round "7.3"]
[White "Gorozhankina, Julia"]
[Black "Laimins, Lauris"]
[Result "1/2-1/2"]
[TimeControl "180+2"]
[WhiteTitle "WFM"]
[WhiteElo "2033"]
[BlackElo "2124"]

1. e4 {[%clk 00:03:02]} {[%emt 00:00:01]} c6 {[%clk 00:03:00]} {[%emt
00:00:05]} 2. d4 {[%clk 00:03:03]} d5 {[%clk 00:03:01]} {[%emt 00:00:01]} 3.
exd5 {[%clk 00:03:05]} {[%emt 00:00:01]} cxd5 {[%clk 00:03:02]} 4. c4 {[%clk
00:03:06]} Nf6 {[%clk 00:02:58]} {[%emt 00:00:06]} 5. Nc3 {[%clk 00:03:07]} Nc6
{[%clk 00:02:57]} {[%emt 00:00:02]} 6. Nf3 {[%clk 00:03:08]} {[%emt 00:00:02]}
e6 {[%clk 00:02:54]} {[%emt 00:00:06]} 7. cxd5 {[%clk 00:03:03]} {[%emt
00:00:07]} Nxd5 {[%clk 00:02:53]} {[%emt 00:00:02]} 8. Bd3 {[%clk 00:03:04]}
Be7 {[%clk 00:02:54]} {[%emt 00:00:01]} 9. O-O {[%clk 00:03:04]} {[%emt
00:00:02]} O-O {[%clk 00:02:49]} {[%emt 00:00:06]} 10. Re1 {[%clk 00:03:05]}
{[%emt 00:00:01]} Bf6 {[%clk 00:02:49]} {[%emt 00:00:02]} 11. Be4 {[%clk
00:03:05]} {[%emt 00:00:01]} Nce7 {[%clk 00:02:50]} {[%emt 00:00:02]} 12. Be3
{[%clk 00:02:40]} {[%emt 00:00:28]} Bd7 {[%clk 00:02:49]} {[%emt 00:00:03]} 13.
Rc1 {[%clk 00:02:39]} {[%emt 00:00:03]} Bc6 {[%clk 00:02:49]} 14. Bb1 {[%clk
00:02:37]} {[%emt 00:00:04]} Re8 {[%clk 00:02:49]} {[%emt 00:00:02]} 15. Ne4
{[%clk 00:02:18]} {[%emt 00:00:20]} Ng6 {[%clk 00:02:46]} {[%emt 00:00:05]}
1/2-1/2

[Event "IV Pullman Blitz 2022"]
[Site "Riga, Latvia"]
[Date "2022.02.20"]
[Round "7.4"]
[White "Sveshnikov, Vladimir"]
[Black "Kretainis, Kristaps"]
[Result "0-1"]
[TimeControl "180+2"]
[WhiteTitle "IM"]
[WhiteElo "2233"]
[BlackElo "2101"]

1. e4 {[%emt 00:07:08]} d5 2. exd5 Qxd5 3. Nc3 Qd6 4. d4 {[%emt 00:00:02]} Nf6
5. Nf3 c6 6. g3 {[%emt 00:00:23]} Bf5 {[%emt 00:00:02]} 7. Bg2 {[%emt
00:00:02]} h6 {[%emt 00:00:01]} 8. O-O {[%emt 00:00:03]} e6 {[%emt 00:00:01]} 9.
Re1 {[%emt 00:00:09]} Be7 {[%emt 00:00:02]} 10. Ne5 {[%emt 00:00:14]} O-O
{[%emt 00:00:03]} 11. Bf4 {[%emt 00:00:03]} Qb4 {[%emt 00:00:17]} 12. Qd2
{[%emt 00:00:28]} Rd8 {[%emt 00:00:18]} 13. Red1 {[%emt 00:01:03]} Qxb2 {[%emt
00:00:02]} 14. Rab1 {[%emt 00:00:01]} Qxc2 {[%emt 00:00:01]} 15. Rxb7 {[%emt
00:00:04]} Kf8 {[%emt 00:01:12]} 16. Qxc2 {[%emt 00:00:13]} Bxc2 {[%emt
00:00:02]} 17. Rd2 {[%emt 00:00:01]} Bf5 {[%emt 00:00:11]} 18. Rdb2 {[%emt
00:00:28]} Nd5 {[%emt 00:00:09]} 19. Bd2 {[%emt 00:00:05]} f6 {[%emt 00:00:07]}
20. Nc4 {[%emt 00:00:03]} Nd7 {[%emt 00:00:09]} 21. Na5 {[%emt 00:00:02]} N5b6
{[%emt 00:00:33]} 22. Nxc6 {[%emt 00:00:04]} Rdc8 {[%emt 00:00:01]} 23. Nxe7
{[%emt 00:00:04]} Kxe7 24. Nb5 {[%emt 00:00:08]} Rab8 {[%emt 00:00:07]} 25.
Bb4+ Kd8 {[%emt 00:00:04]} 26. Rxa7 {[%emt 00:00:02]} Nc4 {[%emt 00:00:02]} 27.
Rb3 {[%emt 00:00:05]} Rb6 {[%emt 00:00:07]} 28. Bc5 {[%emt 00:00:02]} Nxc5
{[%emt 00:00:02]} 29. dxc5 Rxc5 {[%emt 00:00:01]} 30. a4 {[%emt 00:00:01]} Nd6
{[%emt 00:00:05]} 31. Bf3 {[%emt 00:00:02]} Nxb5 {[%emt 00:00:02]} 32. axb5
Rbxb5 33. Rxb5 {[%emt 00:00:01]} Rxb5 34. Rxg7 {[%emt 00:00:03]} Bh3 35. Rb7
{[%emt 00:00:03]} Rxb7 {[%emt 00:00:03]} 36. Bxb7 {[%emt 00:00:02]} 0-1